[Event "*** SCC Grand Prix: Titled Tuesday Blitz"]
[Site "Chess.com"]
[Date "2020.07.21"]
[Round "7"]
[White "MarceloPlaya"]
[Black "WonderChampion"]
[Result "1-0"]
[WhiteElo "2274"]
[BlackElo "1970"]
[TimeControl "180+1"]
[EndTime "11:15:38 PDT"]
[Termination "MarceloPlaya won by checkmate"]

1. e4 {[%clk 0:03:00.9]} 1... c5 {[%clk 0:03:00.2]} 2. Nf3 {[%clk 0:02:58.4]}
2... g6 {[%clk 0:02:59.8]} 3. d4 {[%clk 0:02:57.8]} 3... cxd4 {[%clk 0:03:00.7]}
4. Nxd4 {[%clk 0:02:57.4]} 4... Nc6 {[%clk 0:03:00]} 5. Nc3 {[%clk 0:02:56.8]}
5... Bg7 {[%clk 0:02:57.7]} 6. Be3 {[%clk 0:02:56.5]} 6... Nf6 {[%clk
0:02:56.7]} 7. Qd2 {[%clk 0:02:52.7]} 7... O-O {[%clk 0:02:53.6]} 8. f3 {[%clk
0:02:47.1]} 8... d5 {[%clk 0:02:50.7]} 9. exd5 {[%clk 0:02:39.8]} 9... Nxd5
{[%clk 0:02:49.6]} 10. Nxd5 {[%clk 0:02:39.5]} 10... Qxd5 {[%clk 0:02:48]} 11.
Nxc6 {[%clk 0:02:23.1]} 11... Qxc6 {[%clk 0:02:41.8]} 12. Bd3 {[%clk 0:02:19.4]}
12... Bxb2 {[%clk 0:02:37.5]} 13. O-O {[%clk 0:02:18.2]} 13... Bxa1 {[%clk
0:02:33.2]} 14. Rxa1 {[%clk 0:02:17.9]} 14... Be6 {[%clk 0:02:26.5]} 15. h4
{[%clk 0:02:16.2]} 15... h5 {[%clk 0:02:12.3]} 16. Bd4 {[%clk 0:02:05.9]} 16...
Rfd8 {[%clk 0:01:36.5]} 17. c3 {[%clk 0:02:03.8]} 17... Kh7 {[%clk 0:01:07.7]}
18. Qg5 {[%clk 0:01:59.2]} 18... Qd5 {[%clk 0:01:05.1]} 19. Qxe7 {[%clk
0:01:56.5]} 19... Rg8 {[%clk 0:00:57.4]} 20. Re1 {[%clk 0:01:44.1]} 20... Rae8
{[%clk 0:00:54.6]} 21. Qf6 {[%clk 0:01:39.2]} 21... b5 {[%clk 0:00:34.9]} 22.
Re5 {[%clk 0:01:33]} 22... Qxe5 {[%clk 0:00:24.9]} 23. Qxe5 {[%clk 0:01:23.7]}
23... Bc4 {[%clk 0:00:23.4]} 24. Qxh5# {[%clk 0:01:21.7]} 1-0

[Event "*** SCC Grand Prix: Titled Tuesday Blitz"]
[Site "Chess.com"]
[Date "2020.07.21"]
[Round "7"]
[White "blitzking1729"]
[Black "KingCrusher275"]
[Result "1-0"]
[WhiteElo "2578"]
[BlackElo "2392"]
[TimeControl "180+1"]
[EndTime "11:15:42 PDT"]
[Termination "blitzking1729 won by resignation"]

1. d4 {[%clk 0:03:00.9]} 1... d5 {[%clk 0:03:00.1]} 2. c4 {[%clk 0:03:00.6]}
2... e6 {[%clk 0:02:59.9]} 3. Nc3 {[%clk 0:03:00.1]} 3... Nf6 {[%clk 0:03:00.2]}
4. cxd5 {[%clk 0:02:58.6]} 4... exd5 {[%clk 0:03:01.1]} 5. Bg5 {[%clk
0:02:58.5]} 5... Be7 {[%clk 0:03:01.3]} 6. e3 {[%clk 0:02:58.8]} 6... c6 {[%clk
0:03:01.2]} 7. Bd3 {[%clk 0:02:59]} 7... Nbd7 {[%clk 0:03:01.8]} 8. Qc2 {[%clk
0:02:59.1]} 8... h6 {[%clk 0:03:02.1]} 9. Bh4 {[%clk 0:02:58.9]} 9... Nh5 {[%clk
0:03:02.6]} 10. Bxe7 {[%clk 0:02:59.2]} 10... Qxe7 {[%clk 0:03:03.5]} 11. Nge2
{[%clk 0:02:59.3]} 11... Nb6 {[%clk 0:03:03.3]} 12. O-O {[%clk 0:02:58.6]} 12...
O-O {[%clk 0:03:03.3]} 13. Rfe1 {[%clk 0:02:49.1]} 13... Bd7 {[%clk 0:02:53.7]}
14. Ng3 {[%clk 0:02:47.7]} 14... Nxg3 {[%clk 0:02:52.9]} 15. hxg3 {[%clk
0:02:48.2]} 15... Qd6 {[%clk 0:02:46.1]} 16. Rad1 {[%clk 0:02:41.1]} 16... f5
{[%clk 0:02:37]} 17. a4 {[%clk 0:02:37]} 17... Rae8 {[%clk 0:02:29.9]} 18. a5
{[%clk 0:02:35.6]} 18... Nc8 {[%clk 0:02:29.8]} 19. Na4 {[%clk 0:02:23]} 19...
Qc7 {[%clk 0:02:22.1]} 20. b4 {[%clk 0:02:21]} 20... Nd6 {[%clk 0:02:19.1]} 21.
Rc1 {[%clk 0:02:16.8]} 21... a6 {[%clk 0:02:05]} 22. Nb6 {[%clk 0:02:14.8]}
22... Bc8 {[%clk 0:02:02]} 23. Nxd5 {[%clk 0:02:13.5]} 23... Qf7 {[%clk
0:01:59.6]} 24. Nb6 {[%clk 0:02:11.1]} 24... Kh8 {[%clk 0:01:55.7]} 25. Nc4
{[%clk 0:01:53]} 25... Nxc4 {[%clk 0:01:53.8]} 26. Bxc4 {[%clk 0:01:53.1]} 26...
Qf6 {[%clk 0:01:52]} 27. d5 {[%clk 0:01:47.7]} 27... cxd5 {[%clk 0:01:46.3]} 28.
Bxd5 {[%clk 0:01:47.3]} 28... Rd8 {[%clk 0:01:46.9]} 29. Bf3 {[%clk 0:01:45.4]}
29... Qe7 {[%clk 0:01:39.9]} 30. Qc5 {[%clk 0:01:42.6]} 30... Qf7 {[%clk
0:01:33.5]} 31. Red1 {[%clk 0:01:39.2]} 31... Qb3 {[%clk 0:01:31.4]} 32. Rxd8
{[%clk 0:01:31.5]} 32... Rxd8 {[%clk 0:01:31]} 33. Qe7 {[%clk 0:01:25.4]} 33...
Rg8 {[%clk 0:01:23.1]} 34. Rc7 {[%clk 0:01:09.1]} 34... Qa4 {[%clk 0:01:14.5]}
35. Kh2 {[%clk 0:00:58.3]} 1-0

[Event "*** SCC Grand Prix: Titled Tuesday Blitz"]
[Site "Chess.com"]
[Date "2020.07.21"]
[Round "7"]
[White "Sn00pPawn"]
[Black "romulocardoso"]
[Result "0-1"]
[WhiteElo "1792"]
[BlackElo "2135"]
[TimeControl "180+1"]
[EndTime "11:15:42 PDT"]
[Termination "romulocardoso won on time"]

1. e4 {[%clk 0:03:00.9]} 1... c5 {[%clk 0:02:59.4]} 2. Nf3 {[%clk 0:03:00.9]}
2... d6 {[%clk 0:03:00]} 3. Bb5+ {[%clk 0:02:59.9]} 3... Bd7 {[%clk 0:02:59.7]}
4. Bxd7+ {[%clk 0:02:58.5]} 4... Nxd7 {[%clk 0:03:00.6]} 5. O-O {[%clk
0:02:56.9]} 5... Ngf6 {[%clk 0:02:53.2]} 6. Re1 {[%clk 0:02:55]} 6... g6 {[%clk
0:02:52.9]} 7. c3 {[%clk 0:02:53.5]} 7... Bg7 {[%clk 0:02:52]} 8. d4 {[%clk
0:02:52.6]} 8... cxd4 {[%clk 0:02:52.9]} 9. cxd4 {[%clk 0:02:52.5]} 9... O-O
{[%clk 0:02:53.8]} 10. Nc3 {[%clk 0:02:47.9]} 10... Rc8 {[%clk 0:02:52.4]} 11.
e5 {[%clk 0:02:34.4]} 11... Ne8 {[%clk 0:02:50.9]} 12. Bf4 {[%clk 0:02:06]}
12... dxe5 {[%clk 0:02:47.3]} 13. dxe5 {[%clk 0:02:05]} 13... Nc7 {[%clk
0:02:45.3]} 14. Qa4 {[%clk 0:01:55.4]} 14... Ne6 {[%clk 0:02:43.9]} 15. Bg3
{[%clk 0:01:46.1]} 15... Nb6 {[%clk 0:02:44]} 16. Qxa7 {[%clk 0:01:37]} 16...
Qc7 {[%clk 0:02:41.8]} 17. Nb5 {[%clk 0:01:27.7]} 17... Qc5 {[%clk 0:02:39.7]}
18. a4 {[%clk 0:01:08.2]} 18... Ra8 {[%clk 0:02:17.5]} 19. Qxb7 {[%clk
0:01:06.3]} 19... Nxa4 {[%clk 0:02:17.2]} 20. Rec1 {[%clk 0:00:34.5]} 20... Qb4
{[%clk 0:02:16.3]} 21. Nd6 {[%clk 0:00:16.3]} 21... Qxb7 {[%clk 0:02:17.2]} 22.
Nxb7 {[%clk 0:00:17.1]} 22... Rfb8 {[%clk 0:02:15.8]} 23. b3 {[%clk 0:00:15.4]}
23... Nb6 {[%clk 0:02:08]} 24. Nc5 {[%clk 0:00:13.2]} 24... Rxa1 {[%clk
0:02:07.1]} 25. Rxa1 {[%clk 0:00:10.8]} 25... Nxc5 {[%clk 0:02:07.6]} 26. b4
{[%clk 0:00:09.7]} 26... Nb3 {[%clk 0:02:04.9]} 27. Rd1 {[%clk 0:00:07.4]} 27...
Nc4 {[%clk 0:02:02.3]} 28. Rd7 {[%clk 0:00:06]} 28... Rxb4 {[%clk 0:02:01.3]}
29. Rd8+ {[%clk 0:00:05]} 29... Bf8 {[%clk 0:02:01.8]} 30. Bf4 {[%clk
0:00:05.7]} 30... Nd4 {[%clk 0:01:57.2]} 0-1

[Event "*** SCC Grand Prix: Titled Tuesday Blitz"]
[Site "Chess.com"]
[Date "2020.07.21"]
[Round "7"]
[White "HanSchut"]
[Black "jacky72"]
[Result "0-1"]
[WhiteElo "2306"]
[BlackElo "2624"]
[TimeControl "180+1"]
[EndTime "11:15:45 PDT"]
[Termination "jacky72 won by checkmate"]

1. e4 {[%clk 0:03:00.9]} 1... e5 {[%clk 0:02:58.4]} 2. Nf3 {[%clk 0:02:59.9]}
2... Nc6 {[%clk 0:02:57.9]} 3. Bc4 {[%clk 0:02:59.9]} 3... Bc5 {[%clk
0:02:57.3]} 4. b4 {[%clk 0:03:00.2]} 4... Bxb4 {[%clk 0:02:55.2]} 5. c3 {[%clk
0:03:01]} 5... Ba5 {[%clk 0:02:55.2]} 6. d4 {[%clk 0:03:01.4]} 6... exd4 {[%clk
0:02:54.6]} 7. O-O {[%clk 0:03:01.7]} 7... Nge7 {[%clk 0:02:20]} 8. Ng5 {[%clk
0:03:00.9]} 8... d5 {[%clk 0:02:18.5]} 9. exd5 {[%clk 0:03:00.6]} 9... Ne5
{[%clk 0:02:18.6]} 10. Qxd4 {[%clk 0:03:00.7]} 10... N7g6 {[%clk 0:02:06.2]} 11.
Re1 {[%clk 0:03:00.2]} 11... f6 {[%clk 0:02:00.2]} 12. h4 {[%clk 0:01:20]} 12...
Bb6 {[%clk 0:01:53.8]} 13. Qe4 {[%clk 0:01:09.2]} 13... fxg5 {[%clk 0:01:52.9]}
14. h5 {[%clk 0:01:09.5]} 14... O-O {[%clk 0:01:49.6]} 15. hxg6 {[%clk
0:01:09.8]} 15... Bxf2+ {[%clk 0:01:48.8]} 16. Kh1 {[%clk 0:01:05.7]} 16... Nxc4
{[%clk 0:01:48.1]} 17. Re2 {[%clk 0:00:31.8]} 17... Bg3 {[%clk 0:01:40.3]} 18.
Kg1 {[%clk 0:00:11.6]} 18... g4 {[%clk 0:01:34.9]} 19. gxh7+ {[%clk 0:00:09.1]}
19... Kh8 {[%clk 0:01:33.8]} 20. Qxc4 {[%clk 0:00:09]} 20... Qh4 {[%clk
0:01:32.2]} 21. Bf4 {[%clk 0:00:05.9]} 21... Qh2+ {[%clk 0:01:30.2]} 22. Kf1
{[%clk 0:00:06]} 22... Qh1# {[%clk 0:01:31.1]} 0-1

[Event "*** SCC Grand Prix: Titled Tuesday Blitz"]
[Site "Chess.com"]
[Date "2020.07.21"]
[Round "7"]
[White "Isajevsky_Anton"]
[Black "Alexander_Moskalenko"]
[Result "0-1"]
[WhiteElo "2578"]
[BlackElo "2791"]
[TimeControl "180+1"]
[EndTime "11:16:01 PDT"]
[Termination "Alexander_Moskalenko won by resignation"]

1. c4 {[%clk 0:03:00.9]} 1... f5 {[%clk 0:02:48.6]} 2. g3 {[%clk 0:03:00.1]}
2... g6 {[%clk 0:02:48.9]} 3. Bg2 {[%clk 0:03:00]} 3... Bg7 {[%clk 0:02:49.7]}
4. Nc3 {[%clk 0:02:59.9]} 4... d6 {[%clk 0:02:50.4]} 5. d3 {[%clk 0:02:55]} 5...
Nf6 {[%clk 0:02:50.6]} 6. e4 {[%clk 0:02:54.7]} 6... O-O {[%clk 0:02:51]} 7.
Nge2 {[%clk 0:02:54.4]} 7... c5 {[%clk 0:02:35.7]} 8. h3 {[%clk 0:02:40]} 8...
Nc6 {[%clk 0:02:33.2]} 9. Be3 {[%clk 0:02:39.5]} 9... e5 {[%clk 0:02:32.3]} 10.
O-O {[%clk 0:02:27.4]} 10... Nd4 {[%clk 0:02:31.1]} 11. exf5 {[%clk 0:02:22.8]}
11... Bxf5 {[%clk 0:02:25.3]} 12. Ne4 {[%clk 0:01:37.6]} 12... Nxe4 {[%clk
0:02:16.7]} 13. dxe4 {[%clk 0:01:37.1]} 13... Be6 {[%clk 0:02:17.4]} 14. b3
{[%clk 0:01:36.8]} 14... Qd7 {[%clk 0:02:18.1]} 15. Kh2 {[%clk 0:01:16.9]} 15...
b5 {[%clk 0:02:16]} 16. cxb5 {[%clk 0:01:11.5]} 16... Qxb5 {[%clk 0:02:16.9]}
17. Nc3 {[%clk 0:01:11.2]} 17... Qb4 {[%clk 0:02:14.1]} 18. Qd2 {[%clk
0:00:56.4]} 18... a5 {[%clk 0:02:11.4]} 19. Rac1 {[%clk 0:00:32.7]} 19... Rf7
{[%clk 0:02:03]} 20. f4 {[%clk 0:00:29.9]} 20... exf4 {[%clk 0:02:02.7]} 21.
gxf4 {[%clk 0:00:28.7]} 21... Re8 {[%clk 0:01:59.3]} 22. Kh1 {[%clk 0:00:25]}
22... Rfe7 {[%clk 0:01:35.3]} 23. Rf2 {[%clk 0:00:17.5]} 23... Bf7 {[%clk
0:01:35.1]} 24. f5 {[%clk 0:00:10.4]} 24... Nxf5 {[%clk 0:01:34.6]} 25. exf5
{[%clk 0:00:09.5]} 25... Rxe3 {[%clk 0:01:35.5]} 26. f6 {[%clk 0:00:08.4]} 26...
Bh6 {[%clk 0:01:28.9]} 27. Qc2 {[%clk 0:00:07]} 27... Rxc3 {[%clk 0:01:26.3]}
28. Qxc3 {[%clk 0:00:07]} 28... Bxc1 {[%clk 0:01:27]} 29. Qxc1 {[%clk
0:00:07.2]} 29... Re1+ {[%clk 0:01:27.4]} 0-1

[Event "*** SCC Grand Prix: Titled Tuesday Blitz"]
[Site "Chess.com"]
[Date "2020.07.21"]
[Round "7"]
[White "tlomigtlis"]
[Black "alfiefischer77"]
[Result "1-0"]
[WhiteElo "2365"]
[BlackElo "2197"]
[TimeControl "180+1"]
[EndTime "11:16:02 PDT"]
[Termination "tlomigtlis won by resignation"]

1. d4 {[%clk 0:03:00.9]} 1... Nf6 {[%clk 0:02:59.9]} 2. c4 {[%clk 0:03:00.6]}
2... e6 {[%clk 0:02:59.7]} 3. Nc3 {[%clk 0:03:00.3]} 3... Bb4 {[%clk 0:03:00.1]}
4. Qc2 {[%clk 0:02:59.9]} 4... O-O {[%clk 0:02:58.4]} 5. a3 {[%clk 0:02:59.5]}
5... Bxc3+ {[%clk 0:02:58.7]} 6. Qxc3 {[%clk 0:03:00.4]} 6... b5 {[%clk
0:02:59.1]} 7. cxb5 {[%clk 0:02:59.5]} 7... c6 {[%clk 0:02:59.3]} 8. Bg5 {[%clk
0:02:59.1]} 8... cxb5 {[%clk 0:02:56.3]} 9. e3 {[%clk 0:02:59]} 9... Bb7 {[%clk
0:02:56.6]} 10. Nf3 {[%clk 0:02:59.1]} 10... a6 {[%clk 0:02:56.4]} 11. Bd3
{[%clk 0:02:58.2]} 11... h6 {[%clk 0:02:43.5]} 12. Bh4 {[%clk 0:02:54.6]} 12...
d5 {[%clk 0:02:41]} 13. Ne5 {[%clk 0:02:48.9]} 13... Qe7 {[%clk 0:02:20.6]} 14.
O-O {[%clk 0:02:42.3]} 14... Rc8 {[%clk 0:02:13.6]} 15. Qd2 {[%clk 0:02:41.9]}
15... Nc6 {[%clk 0:02:08.5]} 16. Qe2 {[%clk 0:02:14.3]} 16... g5 {[%clk
0:01:57.4]} 17. Bg3 {[%clk 0:02:13.5]} 17... Nxe5 {[%clk 0:01:40]} 18. dxe5
{[%clk 0:02:07.1]} 18... Ne4 {[%clk 0:01:38.3]} 19. Qh5 {[%clk 0:01:55.5]} 19...
Kg7 {[%clk 0:01:34.8]} 20. f4 {[%clk 0:01:44.3]} 20... Rh8 {[%clk 0:01:16]} 21.
f5 {[%clk 0:01:23.4]} 21... exf5 {[%clk 0:01:11]} 22. Rxf5 {[%clk 0:01:24.3]}
22... Nxg3 {[%clk 0:01:04.7]} 23. hxg3 {[%clk 0:01:22.7]} 23... Bc8 {[%clk
0:00:52.8]} 24. Rf6 {[%clk 0:01:21.4]} 24... Be6 {[%clk 0:00:51.1]} 25. Raf1
{[%clk 0:01:18.8]} 25... Rag8 {[%clk 0:00:35]} 26. Bf5 {[%clk 0:01:08.3]} 26...
Bxf5 {[%clk 0:00:18.1]} 27. R1xf5 {[%clk 0:01:09.2]} 27... Rf8 {[%clk
0:00:18.2]} 28. Rxg5+ {[%clk 0:01:08.9]} 1-0

[Event "*** SCC Grand Prix: Titled Tuesday Blitz"]
[Site "Chess.com"]
[Date "2020.07.21"]
[Round "7"]
[White "tan275"]
[Black "Orest_Vovk"]
[Result "0-1"]
[WhiteElo "2253"]
[BlackElo "2396"]
[TimeControl "180+1"]
[EndTime "11:16:04 PDT"]
[Termination "Orest_Vovk won by resignation"]

1. d4 {[%clk 0:03:00.9]} 1... h6 {[%clk 0:02:58.9]} 2. c4 {[%clk 0:03:00.6]}
2... g5 {[%clk 0:02:59.1]} 3. h4 {[%clk 0:02:59.7]} 3... g4 {[%clk 0:02:57.7]}
4. e4 {[%clk 0:02:58.2]} 4... Bg7 {[%clk 0:02:57.1]} 5. Be2 {[%clk 0:02:52.5]}
5... c5 {[%clk 0:02:55.8]} 6. d5 {[%clk 0:02:48.9]} 6... h5 {[%clk 0:02:52.3]}
7. Nc3 {[%clk 0:02:42]} 7... Bxc3+ {[%clk 0:02:51.7]} 8. bxc3 {[%clk 0:02:41.3]}
8... Qa5 {[%clk 0:02:52.2]} 9. Qd3 {[%clk 0:02:34.1]} 9... d6 {[%clk 0:02:51.6]}
10. f3 {[%clk 0:02:28.3]} 10... Nd7 {[%clk 0:02:50.5]} 11. f4 {[%clk 0:02:25.6]}
11... Ngf6 {[%clk 0:02:48.4]} 12. g3 {[%clk 0:02:21.5]} 12... Nxe4 {[%clk
0:02:45.9]} 13. Bd2 {[%clk 0:01:34.8]} 13... Ndf6 {[%clk 0:02:42]} 14. Bd1
{[%clk 0:01:24.7]} 14... Bf5 {[%clk 0:02:37]} 15. Qe3 {[%clk 0:00:47]} 15...
Nxd2 {[%clk 0:02:31]} 16. Kxd2 {[%clk 0:00:43.2]} 16... Ne4+ {[%clk 0:02:27]}
17. Ke2 {[%clk 0:00:35.3]} 17... Qxc3 {[%clk 0:02:25.5]} 18. Qxc3 {[%clk
0:00:31]} 18... Nxc3+ {[%clk 0:02:25.1]} 19. Ke3 {[%clk 0:00:31.4]} 19... Nxd1+
{[%clk 0:02:22.7]} 20. Rxd1 {[%clk 0:00:30.6]} 20... O-O-O {[%clk 0:02:22.4]}
21. Rh2 {[%clk 0:00:28.8]} 21... e6 {[%clk 0:02:21.4]} 22. Rb2 {[%clk
0:00:26.9]} 22... exd5 {[%clk 0:02:19.1]} 23. cxd5 {[%clk 0:00:17.3]} 23...
Rhe8+ {[%clk 0:02:17.6]} 24. Kf2 {[%clk 0:00:17]} 24... Re7 {[%clk 0:02:09.9]}
25. Ne2 {[%clk 0:00:17.3]} 25... Rde8 {[%clk 0:02:08.3]} 26. Nc3 {[%clk
0:00:17.8]} 26... a6 {[%clk 0:01:55.6]} 27. Na4 {[%clk 0:00:17.8]} 27... b5
{[%clk 0:01:44.5]} 28. Nc3 {[%clk 0:00:16.7]} 28... Re3 {[%clk 0:01:43.8]} 29.
Rc1 {[%clk 0:00:14.6]} 29... Rf3+ {[%clk 0:01:43.1]} 30. Kg2 {[%clk 0:00:14]}
30... Ree3 {[%clk 0:01:40.7]} 31. Ne2 {[%clk 0:00:13]} 31... Be4 {[%clk
0:01:39.8]} 32. Kh2 {[%clk 0:00:11.6]} 32... Rf2+ {[%clk 0:01:38.6]} 33. Kg1
{[%clk 0:00:10.3]} 33... Rexe2 {[%clk 0:01:38.6]} 34. Rxe2 {[%clk 0:00:08.9]}
34... Rxe2 {[%clk 0:01:38.8]} 0-1

[Event "*** SCC Grand Prix: Titled Tuesday Blitz"]
[Site "Chess.com"]
[Date "2020.07.21"]
[Round "7"]
[White "okriak"]
[Black "Antipov_Mikhail_Al"]
[Result "0-1"]
[WhiteElo "2709"]
[BlackElo "2861"]
[TimeControl "180+1"]
[EndTime "11:16:05 PDT"]
[Termination "Antipov_Mikhail_Al won by checkmate"]

1. Nf3 {[%clk 0:03:00.9]} 1... Nf6 {[%clk 0:02:53.1]} 2. c4 {[%clk 0:03:00.6]}
2... g6 {[%clk 0:02:52.7]} 3. Nc3 {[%clk 0:03:00.7]} 3... c5 {[%clk 0:02:52.5]}
4. d4 {[%clk 0:02:59.8]} 4... cxd4 {[%clk 0:02:52.7]} 5. Nxd4 {[%clk 0:03:00.3]}
5... d6 {[%clk 0:02:53.3]} 6. e4 {[%clk 0:02:59.7]} 6... Nc6 {[%clk 0:02:53.4]}
7. Be2 {[%clk 0:02:59.6]} 7... Nxd4 {[%clk 0:02:53.3]} 8. Qxd4 {[%clk
0:02:59.3]} 8... Bg7 {[%clk 0:02:54]} 9. Be3 {[%clk 0:02:59.8]} 9... O-O {[%clk
0:02:53]} 10. Qd2 {[%clk 0:02:59.5]} 10... a5 {[%clk 0:02:53.3]} 11. f3 {[%clk
0:02:56]} 11... a4 {[%clk 0:02:50.8]} 12. Rc1 {[%clk 0:02:56]} 12... Be6 {[%clk
0:02:50]} 13. Nd5 {[%clk 0:02:55.4]} 13... Nd7 {[%clk 0:02:38.2]} 14. O-O {[%clk
0:02:51.4]} 14... Nc5 {[%clk 0:02:36.3]} 15. Rfd1 {[%clk 0:02:44.6]} 15... Re8
{[%clk 0:02:12.6]} 16. Rb1 {[%clk 0:02:42.8]} 16... h5 {[%clk 0:01:56.6]} 17. b4
{[%clk 0:02:38.3]} 17... axb3 {[%clk 0:01:56.8]} 18. axb3 {[%clk 0:02:38.7]}
18... Ra3 {[%clk 0:01:51]} 19. Bxc5 {[%clk 0:02:36.6]} 19... dxc5 {[%clk
0:01:49.5]} 20. Nf6+ {[%clk 0:02:36.6]} 20... Bxf6 {[%clk 0:01:49.7]} 21. Qxd8
{[%clk 0:02:36.5]} 21... Rxd8 {[%clk 0:01:50.6]} 22. Rxd8+ {[%clk 0:02:35.8]}
22... Kg7 {[%clk 0:01:51.3]} 23. Rb8 {[%clk 0:02:27.5]} 23... Ra7 {[%clk
0:01:45.2]} 24. f4 {[%clk 0:02:12.2]} 24... Bd4+ {[%clk 0:01:43.4]} 25. Kf1
{[%clk 0:02:12.1]} 25... h4 {[%clk 0:01:39.1]} 26. Bd3 {[%clk 0:02:07]} 26... h3
{[%clk 0:01:07.8]} 27. f5 {[%clk 0:02:02.8]} 27... Bd7 {[%clk 0:00:41.1]} 28.
gxh3 {[%clk 0:01:56.1]} 28... gxf5 {[%clk 0:00:33.9]} 29. b4 {[%clk 0:01:40.4]}
29... fxe4 {[%clk 0:00:18.6]} 30. Bxe4 {[%clk 0:01:40.5]} 30... Ra2 {[%clk
0:00:19.2]} 31. Rxb7 {[%clk 0:01:28.1]} 31... Bxh3+ {[%clk 0:00:18.8]} 32. Ke1
{[%clk 0:01:27.5]} 32... Bc3+ {[%clk 0:00:19]} 33. Kd1 {[%clk 0:01:24.5]} 33...
Bg4+ {[%clk 0:00:19.9]} 34. Kc1 {[%clk 0:01:24.6]} 34... Bd2# {[%clk 0:00:20]}
0-1

[Event "*** SCC Grand Prix: Titled Tuesday Blitz"]
[Site "Chess.com"]
[Date "2020.07.21"]
[Round "7"]
[White "baag"]
[Black "Man-Chuk"]
[Result "1-0"]
[WhiteElo "2694"]
[BlackElo "2839"]
[TimeControl "180+1"]
[EndTime "11:16:08 PDT"]
[Termination "baag won by resignation"]

1. d4 {[%clk 0:03:00.9]} 1... Nf6 {[%clk 0:02:39.1]} 2. c4 {[%clk 0:03:01.2]}
2... e6 {[%clk 0:02:38.5]} 3. Nc3 {[%clk 0:03:01.6]} 3... Bb4 {[%clk 0:02:37]}
4. Bd2 {[%clk 0:03:02.2]} 4... b6 {[%clk 0:02:34.3]} 5. Nf3 {[%clk 0:03:02.1]}
5... Bb7 {[%clk 0:02:34]} 6. e3 {[%clk 0:03:02.6]} 6... Bxc3 {[%clk 0:02:32.8]}
7. Bxc3 {[%clk 0:03:02.4]} 7... Ne4 {[%clk 0:02:33.4]} 8. Rc1 {[%clk 0:03:03]}
8... O-O {[%clk 0:02:30.2]} 9. Bd3 {[%clk 0:03:02.8]} 9... f5 {[%clk 0:02:29.6]}
10. O-O {[%clk 0:03:02.9]} 10... d6 {[%clk 0:02:14.3]} 11. Be1 {[%clk
0:03:02.3]} 11... Rf6 {[%clk 0:02:09.9]} 12. Nd2 {[%clk 0:02:48.2]} 12... Nxd2
{[%clk 0:01:44.8]} 13. Bxd2 {[%clk 0:02:49.1]} 13... Nd7 {[%clk 0:01:38.9]} 14.
f3 {[%clk 0:02:45.3]} 14... Qe8 {[%clk 0:01:28.3]} 15. b4 {[%clk 0:02:37.4]}
15... Qh5 {[%clk 0:01:27.8]} 16. c5 {[%clk 0:02:02.1]} 16... bxc5 {[%clk
0:01:09.8]} 17. bxc5 {[%clk 0:02:02.2]} 17... dxc5 {[%clk 0:01:10]} 18. dxc5
{[%clk 0:01:58.3]} 18... Rh6 {[%clk 0:00:55.8]} 19. h3 {[%clk 0:01:57.7]} 19...
Rg6 {[%clk 0:00:55.8]} 20. c6 {[%clk 0:01:39.6]} 20... Qxh3 {[%clk 0:00:53.4]}
21. Qe2 {[%clk 0:01:28.1]} 21... Bxc6 {[%clk 0:00:51.2]} 22. Rxc6 {[%clk
0:01:29]} 22... Ne5 {[%clk 0:00:51.3]} 23. Rxe6 {[%clk 0:01:27.7]} 23... Qg3
{[%clk 0:00:22.7]} 24. Be1 {[%clk 0:01:27.3]} 1-0

[Event "*** SCC Grand Prix: Titled Tuesday Blitz"]
[Site "Chess.com"]
[Date "2020.07.21"]
[Round "7"]
[White "Thipsay"]
[Black "krzyzan94"]
[Result "0-1"]
[WhiteElo "2470"]
[BlackElo "2651"]
[TimeControl "180+1"]
[EndTime "11:16:10 PDT"]
[Termination "krzyzan94 won by resignation"]

1. e4 {[%clk 0:02:51.4]} 1... e5 {[%clk 0:02:59.1]} 2. Nf3 {[%clk 0:02:50.8]}
2... Nc6 {[%clk 0:02:57.5]} 3. Bb5 {[%clk 0:02:50.6]} 3... a6 {[%clk 0:02:56.7]}
4. Ba4 {[%clk 0:02:50.8]} 4... Nf6 {[%clk 0:02:56.9]} 5. O-O {[%clk 0:02:51]}
5... Be7 {[%clk 0:02:57.4]} 6. Re1 {[%clk 0:02:51.2]} 6... b5 {[%clk 0:02:58]}
7. Bb3 {[%clk 0:02:51.4]} 7... O-O {[%clk 0:02:58.6]} 8. h3 {[%clk 0:02:49.2]}
8... Bb7 {[%clk 0:02:58.4]} 9. d3 {[%clk 0:02:46.4]} 9... d5 {[%clk 0:02:54.3]}
10. exd5 {[%clk 0:02:45.6]} 10... Nxd5 {[%clk 0:02:54.8]} 11. Nxe5 {[%clk
0:02:45.7]} 11... Nxe5 {[%clk 0:02:54.7]} 12. Rxe5 {[%clk 0:02:45.7]} 12... Qd6
{[%clk 0:02:53.5]} 13. Re1 {[%clk 0:02:20.6]} 13... Rae8 {[%clk 0:02:53]} 14.
Nc3 {[%clk 0:02:19.9]} 14... Nxc3 {[%clk 0:02:47.5]} 15. bxc3 {[%clk 0:02:19.5]}
15... Qc6 {[%clk 0:02:47.5]} 16. Qg4 {[%clk 0:02:13.9]} 16... h5 {[%clk
0:02:27.3]} 17. Qe4 {[%clk 0:01:24.5]} 17... Bd6 {[%clk 0:02:16.3]} 18. Bg5
{[%clk 0:00:25.7]} 18... Rxe4 {[%clk 0:02:12.7]} 19. dxe4 {[%clk 0:00:25.4]}
19... Qxc3 {[%clk 0:02:09.6]} 20. Rad1 {[%clk 0:00:22]} 20... a5 {[%clk
0:01:51.9]} 21. e5 {[%clk 0:00:17.5]} 21... Bxe5 {[%clk 0:01:46.7]} 22. Re3
{[%clk 0:00:17.1]} 22... Qb2 {[%clk 0:01:26.5]} 23. Be7 {[%clk 0:00:09.2]} 23...
Re8 {[%clk 0:01:22.8]} 24. Bc5 {[%clk 0:00:08.2]} 24... a4 {[%clk 0:01:17.2]}
25. f4 {[%clk 0:00:08.4]} 25... axb3 {[%clk 0:01:13.9]} 26. fxe5 {[%clk
0:00:08.2]} 26... bxc2 {[%clk 0:01:13]} 0-1